[Event "Titled Tuesday Blitz January 03 Early 2023"]
[White "Hoffmann, Asa"]
[Black "Sargsyan, Anna M."]
[WhiteFideId "2001470"]
[BlackFideId "13308130"]
[WhiteElo "2185"]
[BlackElo "2375"]
[Result "1/2-1/2"]
[Round "07"]
[TimeControl "180+2"]
[Date "2023.01.03"]
[WhiteClock "0:00:07"]
[BlackClock "0:00:16"]

1. d4 {[%clk 0:02:58]}  d5 {[%clk 0:02:59]} 2. Bg5 {[%clk 0:02:51]}  Bf5 {[%clk 0:02:58]} 3. c4 {[%clk 0:02:50]}  c6 {[%clk 0:02:58]} 4. Nc3 {[%clk 0:02:41]}  f6 {[%clk 0:02:50]} 5. Bf4 {[%clk 0:02:35]}  e6 {[%clk 0:02:49]} 6. Nf3 {[%clk 0:02:32]}  Bd6 {[%clk 0:02:48]} 7. Bg3 {[%clk 0:02:31]}  Ne7 {[%clk 0:02:48]} 8. e3 {[%clk 0:02:31]}  O-O {[%clk 0:02:46]} 9. Qb3 {[%clk 0:02:27]}  Bxg3 {[%clk 0:02:46]} 10. hxg3 {[%clk 0:02:26]}  Qd7 {[%clk 0:02:43]} 11. Nh4 {[%clk 0:02:22]}  Bg4 {[%clk 0:02:42]} 12. f3 {[%clk 0:02:20]}  Bh5 {[%clk 0:02:42]} 13. g4 {[%clk 0:02:20]}  Bf7 {[%clk 0:02:41]} 14. g3 {[%clk 0:02:19]}  e5 {[%clk 0:02:40]} 15. cxd5 {[%clk 0:02:16]}  Nxd5 {[%clk 0:02:39]} 16. Nxd5 {[%clk 0:02:12]}  Bxd5 {[%clk 0:02:40]} 17. Bc4 {[%clk 0:02:11]}  exd4 {[%clk 0:02:40]} 18. Bxd5+ {[%clk 0:02:04]}  cxd5 {[%clk 0:02:41]} 19. exd4 {[%clk 0:02:03]}  Re8+ {[%clk 0:02:41]} 20. Kf2 {[%clk 0:02:03]}  Nc6 {[%clk 0:02:42]} 21. Rad1 {[%clk 0:01:57]}  Rac8 {[%clk 0:02:37]} 22. Nf5 {[%clk 0:01:46]}  Na5 {[%clk 0:02:31]} 23. Qd3 {[%clk 0:01:41]}  g6 {[%clk 0:02:28]} 24. Ne3 {[%clk 0:01:32]}  Nc4 {[%clk 0:02:25]} 25. Nxc4 {[%clk 0:01:26]}  Rxc4 {[%clk 0:02:26]} 26. b3 {[%clk 0:01:23]}  Rc6 {[%clk 0:02:23]} 27. Rhe1 {[%clk 0:01:21]}  Rec8 {[%clk 0:02:21]} 28. Rd2 {[%clk 0:01:12]}  Rc3 {[%clk 0:02:17]} 29. Qe2 {[%clk 0:01:10]}  Kf7 {[%clk 0:02:12]} 30. Rd3 {[%clk 0:01:00]}  Rc2 {[%clk 0:01:45]} 31. Rd2 {[%clk 0:01:00]}  Rc1 {[%clk 0:01:40]} 32. Rxc1 {[%clk 0:00:58]}  Rxc1 {[%clk 0:01:40]} 33. Qe3 {[%clk 0:00:56]}  Qe6 {[%clk 0:01:09]} 34. Qxe6+ {[%clk 0:00:52]}  Kxe6 {[%clk 0:01:10]} 35. f4 {[%clk 0:00:51]}  h5 {[%clk 0:01:06]} 36. gxh5 {[%clk 0:00:48]}  gxh5 {[%clk 0:01:07]} 37. Kf3 {[%clk 0:00:48]}  Rc3+ {[%clk 0:01:02]} 38. Kg2 {[%clk 0:00:47]}  Kf5 {[%clk 0:01:03]} 39. Kh3 {[%clk 0:00:44]}  Ke4 {[%clk 0:01:02]} 40. Kh4 {[%clk 0:00:37]}  b5 {[%clk 0:00:59]} 41. Re2+ {[%clk 0:00:25]}  Kxd4 {[%clk 0:00:59]} 42. Re6 {[%clk 0:00:21]}  Kc5 {[%clk 0:00:31]} 43. Rxf6 {[%clk 0:00:20]}  d4 {[%clk 0:00:32]} 44. Re6 {[%clk 0:00:18]}  d3 {[%clk 0:00:31]} 45. Re1 {[%clk 0:00:17]}  Kd4 {[%clk 0:00:29]} 46. Kxh5 {[%clk 0:00:15]}  d2 {[%clk 0:00:27]} 47. Rd1 {[%clk 0:00:15]}  Kd3 {[%clk 0:00:28]} 48. g4 {[%clk 0:00:15]}  Kc2 {[%clk 0:00:28]} 49. Rxd2+ {[%clk 0:00:15]}  Kxd2 {[%clk 0:00:29]} 50. f5 {[%clk 0:00:15]}  Ke3 {[%clk 0:00:26]} 51. f6 {[%clk 0:00:13]}  Kf4 {[%clk 0:00:21]} 52. Kg6 {[%clk 0:00:07]}  Kxg4 {[%clk 0:00:16]} 53. f7 {[%clk 0:00:07]}  Rc8 {[%clk 0:00:15]} 54. Kg7 {[%clk 0:00:07]}  Kf4 {[%clk 0:00:12]} 55. f8=Q+ {[%clk 0:00:06]}  Rxf8 {[%clk 0:00:12]} 56. Kxf8 {[%clk 0:00:06]}  Ke4 {[%clk 0:00:13]} 57. Ke7 {[%clk 0:00:06]}  Kd3 {[%clk 0:00:14]} 58. Kd6 {[%clk 0:00:06]}  Kc2 {[%clk 0:00:15]} 59. Kc5 {[%clk 0:00:07]}  Kb2 {[%clk 0:00:15]} 60. Kxb5 {[%clk 0:00:06]}  Kxa2 {[%clk 0:00:16]} 61. Ka6 {[%clk 0:00:06]}  Kxb3 {[%clk 0:00:16]} 62. Kxa7 {[%clk 0:00:07]} 1/2-1/2


[Site "https://www.chess.com"]

[Event "Titled Tuesday Blitz January 03 Early 2023"]
[White "Balint, Vilmos"]
[Black "Lehtosaari, Mauri"]
[WhiteFideId "718050"]
[BlackFideId "501999"]
[WhiteElo "2169"]
[BlackElo "2176"]
[Result "0-1"]
[Round "07"]
[TimeControl "180+2"]
[Date "2023.01.03"]
[WhiteClock "0:01:28"]
[BlackClock "0:01:09"]

1. e4 {[%clk 0:02:58]}  d5 {[%clk 0:02:59]} 2. exd5 {[%clk 0:02:58]}  Qxd5 {[%clk 0:03:00]} 3. Nc3 {[%clk 0:02:58]}  Qe5+ {[%clk 0:02:59]} 4. Qe2 {[%clk 0:02:58]}  Qxe2+ {[%clk 0:02:59]} 5. Bxe2 {[%clk 0:02:58]}  c6 {[%clk 0:03:00]} 6. d4 {[%clk 0:02:58]}  Bf5 {[%clk 0:02:56]} 7. Kd1 {[%clk 0:02:44]}  e6 {[%clk 0:02:55]} 8. Bf4 {[%clk 0:02:44]}  Nd7 {[%clk 0:02:54]} 9. a4 {[%clk 0:02:44]}  a5 {[%clk 0:02:53]} 10. h3 {[%clk 0:02:43]}  h6 {[%clk 0:02:52]} 11. Nf3 {[%clk 0:02:42]}  Ngf6 {[%clk 0:02:51]} 12. Kd2 {[%clk 0:02:38]}  Nd5 {[%clk 0:02:50]} 13. Nxd5 {[%clk 0:02:37]}  cxd5 {[%clk 0:02:50]} 14. c3 {[%clk 0:02:37]}  f6 {[%clk 0:02:44]} 15. Bb5 {[%clk 0:02:37]}  Ke7 {[%clk 0:02:35]} 16. Rhe1 {[%clk 0:02:36]}  Nb8 {[%clk 0:02:28]} 17. g4 {[%clk 0:02:31]}  Be4 {[%clk 0:02:24]} 18. Nh4 {[%clk 0:02:19]}  Kf7 {[%clk 0:02:08]} 19. f3 {[%clk 0:02:11]}  Bh7 {[%clk 0:02:08]} 20. Bg3 {[%clk 0:02:07]}  g5 {[%clk 0:01:59]} 21. Ng2 {[%clk 0:02:03]}  Nc6 {[%clk 0:01:58]} 22. Re3 {[%clk 0:01:56]}  Bg7 {[%clk 0:01:51]} 23. Rae1 {[%clk 0:01:50]}  Rhe8 {[%clk 0:01:51]} 24. f4 {[%clk 0:01:49]}  Be4 {[%clk 0:01:49]} 25. R1e2 {[%clk 0:01:47]}  f5 {[%clk 0:01:45]} 26. Ne1 {[%clk 0:01:46]}  Rad8 {[%clk 0:01:38]} 27. Nd3 {[%clk 0:01:45]}  Re7 {[%clk 0:01:27]} 28. Nc5 {[%clk 0:01:32]}  Nxd4 {[%clk 0:01:11]} 29. c4 {[%clk 0:01:28]}  Nxe2 {[%clk 0:01:09]} 0-1


[Site "https://www.chess.com"]

[Event "Titled Tuesday Blitz January 03 Early 2023"]
[White "Shuvalov, Evgenij"]
[Black "Zaksaite, Salomeja"]
[WhiteFideId "4187237"]
[BlackFideId "12801496"]
[WhiteElo "2038"]
[BlackElo "2283"]
[Result "0-1"]
[Round "07"]
[TimeControl "180+2"]
[Date "2023.01.03"]
[WhiteClock "0:00:15"]
[BlackClock "0:00:07"]

1. d4 {[%clk 0:02:47]}  Nf6 {[%clk 0:02:59]} 2. c4 {[%clk 0:02:47]}  g6 {[%clk 0:03:00]} 3. Nc3 {[%clk 0:02:47]}  d5 {[%clk 0:03:00]} 4. cxd5 {[%clk 0:02:46]}  Nxd5 {[%clk 0:03:01]} 5. e4 {[%clk 0:02:47]}  Nxc3 {[%clk 0:03:01]} 6. bxc3 {[%clk 0:02:47]}  Bg7 {[%clk 0:03:02]} 7. Nf3 {[%clk 0:02:48]}  c5 {[%clk 0:03:02]} 8. Rb1 {[%clk 0:02:48]}  O-O {[%clk 0:03:01]} 9. Be2 {[%clk 0:02:48]}  b6 {[%clk 0:03:01]} 10. e5 {[%clk 0:02:34]}  Bf5 {[%clk 0:02:57]} 11. Rb3 {[%clk 0:02:32]}  Be6 {[%clk 0:02:52]} 12. Rb2 {[%clk 0:02:27]}  cxd4 {[%clk 0:02:50]} 13. cxd4 {[%clk 0:02:27]}  Nc6 {[%clk 0:02:49]} 14. Be3 {[%clk 0:02:25]}  Na5 {[%clk 0:02:44]} 15. Nd2 {[%clk 0:02:21]}  Rc8 {[%clk 0:02:39]} 16. h4 {[%clk 0:02:16]}  Nc4 {[%clk 0:02:38]} 17. Nxc4 {[%clk 0:02:15]}  Bxc4 {[%clk 0:02:37]} 18. h5 {[%clk 0:02:11]}  Bxe2 {[%clk 0:02:29]} 19. Rxe2 {[%clk 0:02:11]}  Qd5 {[%clk 0:02:26]} 20. Kf1 {[%clk 0:02:09]}  Bxe5 {[%clk 0:02:21]} 21. Bh6 {[%clk 0:02:02]}  Bg7 {[%clk 0:02:20]} 22. Bxg7 {[%clk 0:02:02]}  Kxg7 {[%clk 0:02:21]} 23. Rxe7 {[%clk 0:02:01]}  Qg5 {[%clk 0:00:59]} 24. Re1 {[%clk 0:01:50]}  Rfe8 {[%clk 0:00:59]} 25. h6+ {[%clk 0:01:44]}  Kf8 {[%clk 0:00:53]} 26. Rxe8+ {[%clk 0:01:42]}  Rxe8 {[%clk 0:00:44]} 27. Rh3 {[%clk 0:01:14]}  Rc8 {[%clk 0:00:41]} 28. Re3 {[%clk 0:01:14]}  Qxh6 {[%clk 0:00:37]} 29. Kg1 {[%clk 0:01:14]}  Qf4 {[%clk 0:00:36]} 30. d5 {[%clk 0:01:12]}  Rd8 {[%clk 0:00:34]} 31. Qa1 {[%clk 0:01:05]}  Kg8 {[%clk 0:00:29]} 32. Qd1 {[%clk 0:01:01]}  h5 {[%clk 0:00:28]} 33. Re7 {[%clk 0:00:57]}  a5 {[%clk 0:00:26]} 34. Rb7 {[%clk 0:00:56]}  Rc8 {[%clk 0:00:21]} 35. g3 {[%clk 0:00:50]}  Rc1 {[%clk 0:00:20]} 36. gxf4 {[%clk 0:00:45]}  Rxd1+ {[%clk 0:00:21]} 37. Kg2 {[%clk 0:00:46]}  Rxd5 {[%clk 0:00:20]} 38. Rxb6 {[%clk 0:00:46]}  Kg7 {[%clk 0:00:21]} 39. Rb3 {[%clk 0:00:42]}  Kf6 {[%clk 0:00:15]} 40. Rb6+ {[%clk 0:00:36]}  Kf5 {[%clk 0:00:15]} 41. Ra6 {[%clk 0:00:36]}  Kxf4 {[%clk 0:00:13]} 42. Rf6+ {[%clk 0:00:33]}  Rf5 {[%clk 0:00:13]} 43. Ra6 {[%clk 0:00:33]}  Kg4 {[%clk 0:00:12]} 44. Ra7 {[%clk 0:00:29]}  h4 {[%clk 0:00:12]} 45. Ra6 {[%clk 0:00:22]}  g5 {[%clk 0:00:11]} 46. Ra8 {[%clk 0:00:22]}  f6 {[%clk 0:00:11]} 47. Ra6 {[%clk 0:00:21]}  h3+ {[%clk 0:00:11]} 48. Kg1 {[%clk 0:00:22]}  h2+ {[%clk 0:00:11]} 49. Kg2 {[%clk 0:00:19]}  Rxf2+ {[%clk 0:00:10]} 50. Kh1 {[%clk 0:00:18]}  Kh3 {[%clk 0:00:08]} 51. Rxf6 {[%clk 0:00:15]}  Rxf6 {[%clk 0:00:07]} 52. a4 {[%clk 0:00:15]}  Rf1# {[%clk 0:00:07]} 0-1


[Site "https://www.chess.com"]

[Event "Titled Tuesday Blitz January 03 Early 2023"]
[White "Moreno Perez, Tobias Sebastian"]
[Black "Matveeva, Olga"]
[WhiteFideId "186716"]
[BlackFideId "24107018"]
[WhiteElo "2256"]
[BlackElo "2128"]
[Result "1-0"]
[Round "07"]
[TimeControl "180+2"]
[Date "2023.01.03"]
[WhiteClock "0:00:03"]
[BlackClock "0:00:01"]

1. e4 {[%clk 0:03:00]}  e6 {[%clk 0:02:59]} 2. d4 {[%clk 0:02:52]}  d5 {[%clk 0:02:59]} 3. Nc3 {[%clk 0:02:53]}  Nf6 {[%clk 0:02:59]} 4. exd5 {[%clk 0:02:47]}  exd5 {[%clk 0:02:58]} 5. Bd3 {[%clk 0:02:48]}  c5 {[%clk 0:02:54]} 6. dxc5 {[%clk 0:02:47]}  Bxc5 {[%clk 0:02:53]} 7. Bg5 {[%clk 0:02:47]}  O-O {[%clk 0:02:42]} 8. Qf3 {[%clk 0:02:37]}  Re8+ {[%clk 0:02:39]} 9. Nge2 {[%clk 0:02:37]}  Be6 {[%clk 0:01:26]} 10. O-O-O {[%clk 0:02:33]}  Nbd7 {[%clk 0:01:24]} 11. Qg3 {[%clk 0:02:21]}  b5 {[%clk 0:01:11]} 12. Nf4 {[%clk 0:02:18]}  Be7 {[%clk 0:00:57]} 13. Nxe6 {[%clk 0:01:46]}  fxe6 {[%clk 0:00:58]} 14. Qh3 {[%clk 0:01:47]}  Nf8 {[%clk 0:00:46]} 15. Bxb5 {[%clk 0:01:44]}  N6d7 {[%clk 0:00:37]} 16. Bxe7 {[%clk 0:01:36]}  Qxe7 {[%clk 0:00:38]} 17. Rhe1 {[%clk 0:01:36]}  Rab8 {[%clk 0:00:36]} 18. Ba4 {[%clk 0:01:11]}  Qb4 {[%clk 0:00:34]} 19. Bb3 {[%clk 0:01:11]}  Nc5 {[%clk 0:00:27]} 20. Qe3 {[%clk 0:00:53]}  a5 {[%clk 0:00:24]} 21. Qd4 {[%clk 0:00:31]}  a4 {[%clk 0:00:17]} 22. Nxd5 {[%clk 0:00:15]}  Nxb3+ {[%clk 0:00:09]} 23. cxb3 {[%clk 0:00:10]}  Qxd4 {[%clk 0:00:09]} 24. Rxd4 {[%clk 0:00:10]}  exd5 {[%clk 0:00:09]} 25. Rxe8 {[%clk 0:00:09]}  Rxe8 {[%clk 0:00:10]} 26. bxa4 {[%clk 0:00:09]}  Re2 {[%clk 0:00:09]} 27. Rd2 {[%clk 0:00:09]}  Re1+ {[%clk 0:00:09]} 28. Kc2 {[%clk 0:00:09]}  Ne6 {[%clk 0:00:06]} 29. Rxd5 {[%clk 0:00:07]}  Kf7 {[%clk 0:00:06]} 30. a5 {[%clk 0:00:07]}  Re2+ {[%clk 0:00:04]} 31. Rd2 {[%clk 0:00:07]}  Re5 {[%clk 0:00:04]} 32. b4 {[%clk 0:00:06]}  Ke7 {[%clk 0:00:04]} 33. Kb3 {[%clk 0:00:05]}  Nf4 {[%clk 0:00:04]} 34. g3 {[%clk 0:00:04]}  Nd5 {[%clk 0:00:03]} 35. f4 {[%clk 0:00:04]}  Rf5 {[%clk 0:00:02]} 36. a4 {[%clk 0:00:03]}  Nc7 {[%clk 0:00:01]} 37. b5 {[%clk 0:00:03]} 1-0


[Site "https://www.chess.com"]

[Event "Titled Tuesday Blitz January 03 Early 2023"]
[White "Schut, Han"]
[Black "Begunov, Konstantin"]
[WhiteFideId "1005561"]
[BlackFideId "4118510"]
[WhiteElo "2101"]
[BlackElo "2325"]
[Result "1/2-1/2"]
[Round "07"]
[TimeControl "180+2"]
[Date "2023.01.03"]
[WhiteClock "0:00:10"]
[BlackClock "0:00:09"]

1. e4 {[%clk 0:02:59]}  c5 {[%clk 0:02:59]} 2. Nf3 {[%clk 0:02:59]}  d6 {[%clk 0:03:00]} 3. d4 {[%clk 0:02:59]}  cxd4 {[%clk 0:03:01]} 4. Nxd4 {[%clk 0:02:59]}  Nf6 {[%clk 0:03:01]} 5. f3 {[%clk 0:03:00]}  e5 {[%clk 0:03:00]} 6. Bb5+ {[%clk 0:03:00]}  Nbd7 {[%clk 0:02:57]} 7. Nf5 {[%clk 0:03:00]}  a6 {[%clk 0:02:57]} 8. Bxd7+ {[%clk 0:02:57]}  Qxd7 {[%clk 0:02:47]} 9. Bg5 {[%clk 0:02:52]}  Qb5 {[%clk 0:02:37]} 10. Bxf6 {[%clk 0:02:34]}  Bxf5 {[%clk 0:02:31]} 11. exf5 {[%clk 0:02:15]}  Qxb2 {[%clk 0:02:27]} 12. Nd2 {[%clk 0:02:02]}  gxf6 {[%clk 0:02:24]} 13. Rb1 {[%clk 0:01:59]}  Qc3 {[%clk 0:02:09]} 14. Rxb7 {[%clk 0:01:49]}  Bh6 {[%clk 0:02:06]} 15. Rb3 {[%clk 0:01:36]}  Qa5 {[%clk 0:01:47]} 16. c3 {[%clk 0:01:26]}  Qxa2 {[%clk 0:01:14]} 17. Ne4 {[%clk 0:01:08]}  Qxg2 {[%clk 0:01:05]} 18. Nxf6+ {[%clk 0:00:52]}  Ke7 {[%clk 0:01:01]} 19. Rb7+ {[%clk 0:00:29]}  Kxf6 {[%clk 0:00:56]} 20. Qxd6+ {[%clk 0:00:30]}  Kg5 {[%clk 0:00:52]} 21. Qe7+ {[%clk 0:00:28]}  f6 {[%clk 0:00:41]} 22. h4+ {[%clk 0:00:24]}  Kxf5 {[%clk 0:00:18]} 23. Qd7+ {[%clk 0:00:21]}  Kg6 {[%clk 0:00:14]} 24. Qf7+ {[%clk 0:00:14]}  Kf5 {[%clk 0:00:14]} 25. Qd7+ {[%clk 0:00:14]}  Kg6 {[%clk 0:00:09]} 26. Qf7+ {[%clk 0:00:12]}  Kf5 {[%clk 0:00:09]} 27. Qd7+ {[%clk 0:00:10]} 1/2-1/2


[Site "https://www.chess.com"]

[Event "Titled Tuesday Blitz January 03 Early 2023"]
[White "Bobomurodova, Maftuna"]
[Black "Kaplan, Avi Harrison"]
[WhiteFideId "14207400"]
[BlackFideId "30934559"]
[WhiteElo "1946"]
[BlackElo "2146"]
[Result "0-1"]
[Round "07"]
[TimeControl "180+2"]
[Date "2023.01.03"]
[WhiteClock "0:00:09"]
[BlackClock "0:00:08"]

1. e4 {[%clk 0:03:00]}  d6 {[%clk 0:03:00]} 2. d4 {[%clk 0:03:00]}  Nf6 {[%clk 0:02:51]} 3. Nc3 {[%clk 0:03:00]}  Nbd7 {[%clk 0:02:51]} 4. Nf3 {[%clk 0:02:58]}  e5 {[%clk 0:02:51]} 5. Be2 {[%clk 0:02:56]}  Be7 {[%clk 0:02:51]} 6. O-O {[%clk 0:02:56]}  c6 {[%clk 0:02:50]} 7. h3 {[%clk 0:02:56]}  h6 {[%clk 0:02:50]} 8. Be3 {[%clk 0:02:55]}  Qc7 {[%clk 0:02:50]} 9. a4 {[%clk 0:02:54]}  O-O {[%clk 0:02:50]} 10. a5 {[%clk 0:02:54]}  Rd8 {[%clk 0:02:48]} 11. a6 {[%clk 0:02:54]}  b5 {[%clk 0:02:45]} 12. d5 {[%clk 0:02:51]}  b4 {[%clk 0:02:38]} 13. Nb1 {[%clk 0:02:26]}  Nxe4 {[%clk 0:02:21]} 14. dxc6 {[%clk 0:02:19]}  Qxc6 {[%clk 0:02:21]} 15. Nbd2 {[%clk 0:02:09]}  Ndf6 {[%clk 0:02:14]} 16. Nb3 {[%clk 0:02:07]}  Be6 {[%clk 0:02:11]} 17. Na5 {[%clk 0:02:06]}  Qc7 {[%clk 0:02:09]} 18. Nb7 {[%clk 0:02:05]}  Rdc8 {[%clk 0:02:05]} 19. Bd3 {[%clk 0:02:05]}  Bd5 {[%clk 0:02:03]} 20. Na5 {[%clk 0:02:01]}  Nc5 {[%clk 0:01:52]} 21. Be2 {[%clk 0:01:58]}  Ne6 {[%clk 0:01:44]} 22. Ne1 {[%clk 0:01:46]}  Rab8 {[%clk 0:01:35]} 23. Bf3 {[%clk 0:01:36]}  Bxf3 {[%clk 0:01:33]} 24. Qxf3 {[%clk 0:01:36]}  d5 {[%clk 0:01:33]} 25. Nb7 {[%clk 0:01:33]}  d4 {[%clk 0:01:28]} 26. Bd2 {[%clk 0:01:32]}  Nc5 {[%clk 0:01:27]} 27. Nxc5 {[%clk 0:01:14]}  Qxc5 {[%clk 0:01:28]} 28. Rc1 {[%clk 0:01:10]}  Qc6 {[%clk 0:01:27]} 29. Qe2 {[%clk 0:01:09]}  Bd6 {[%clk 0:01:24]} 30. Nf3 {[%clk 0:01:07]}  Re8 {[%clk 0:01:18]} 31. Nh4 {[%clk 0:01:06]}  Qb5 {[%clk 0:01:15]} 32. Qf3 {[%clk 0:01:05]}  Qxa6 {[%clk 0:01:12]} 33. Nf5 {[%clk 0:01:04]}  Bf8 {[%clk 0:01:12]} 34. Rce1 {[%clk 0:00:58]}  e4 {[%clk 0:01:03]} 35. Qg3 {[%clk 0:00:54]}  Nh5 {[%clk 0:01:03]} 36. Qg4 {[%clk 0:00:49]}  Qg6 {[%clk 0:00:58]} 37. Rxe4 {[%clk 0:00:47]}  Rxe4 {[%clk 0:00:54]} 38. Qxe4 {[%clk 0:00:46]}  Nf6 {[%clk 0:00:54]} 39. Qf3 {[%clk 0:00:43]}  Rc8 {[%clk 0:00:52]} 40. Nxd4 {[%clk 0:00:40]}  Bc5 {[%clk 0:00:50]} 41. c3 {[%clk 0:00:40]}  bxc3 {[%clk 0:00:49]} 42. bxc3 {[%clk 0:00:40]}  Ne4 {[%clk 0:00:44]} 43. Bf4 {[%clk 0:00:37]}  Bb6 {[%clk 0:00:37]} 44. Rc1 {[%clk 0:00:35]}  a5 {[%clk 0:00:30]} 45. h4 {[%clk 0:00:31]}  Nc5 {[%clk 0:00:19]} 46. h5 {[%clk 0:00:31]}  Qf6 {[%clk 0:00:19]} 47. Qg4 {[%clk 0:00:23]}  Re8 {[%clk 0:00:16]} 48. Nf5 {[%clk 0:00:21]}  Nd3 {[%clk 0:00:15]} 49. Nxh6+ {[%clk 0:00:20]}  Kh8 {[%clk 0:00:12]} 50. Qd7 {[%clk 0:00:20]}  Rf8 {[%clk 0:00:07]} 51. Qxd3 {[%clk 0:00:19]}  Qxf4 {[%clk 0:00:06]} 52. Rb1 {[%clk 0:00:18]}  Qxh6 {[%clk 0:00:05]} 53. Qd7 {[%clk 0:00:14]}  Qf6 {[%clk 0:00:05]} 54. Qd2 {[%clk 0:00:12]}  Rd8 {[%clk 0:00:05]} 55. Qe2 {[%clk 0:00:12]}  Kg8 {[%clk 0:00:05]} 56. c4 {[%clk 0:00:11]}  Bc5 {[%clk 0:00:05]} 57. Rb5 {[%clk 0:00:11]}  Bb4 {[%clk 0:00:05]} 58. Re5 {[%clk 0:00:11]}  a4 {[%clk 0:00:05]} 59. Re8+ {[%clk 0:00:11]}  Rxe8 {[%clk 0:00:05]} 60. Qxe8+ {[%clk 0:00:11]}  Bf8 {[%clk 0:00:06]} 61. Qxa4 {[%clk 0:00:11]}  Qd6 {[%clk 0:00:04]} 62. Qc2 {[%clk 0:00:12]}  Qc5 {[%clk 0:00:04]} 63. Kf1 {[%clk 0:00:12]}  Qd4 {[%clk 0:00:04]} 64. g3 {[%clk 0:00:12]}  Bc5 {[%clk 0:00:04]} 65. Kg2 {[%clk 0:00:11]}  Qd7 {[%clk 0:00:04]} 66. Kf3 {[%clk 0:00:11]}  Qc6+ {[%clk 0:00:04]} 67. Ke2 {[%clk 0:00:11]}  Qe6+ {[%clk 0:00:04]} 68. Kf1 {[%clk 0:00:11]}  Qh3+ {[%clk 0:00:04]} 69. Ke1 {[%clk 0:00:11]}  Qxh5 {[%clk 0:00:05]} 70. Qe4 {[%clk 0:00:11]}  Qh6 {[%clk 0:00:03]} 71. Qa8+ {[%clk 0:00:11]}  Bf8 {[%clk 0:00:04]} 72. Qe4 {[%clk 0:00:10]}  Qd6 {[%clk 0:00:04]} 73. Ke2 {[%clk 0:00:10]}  Qb4 {[%clk 0:00:05]} 74. Kf3 {[%clk 0:00:10]}  Qb3+ {[%clk 0:00:05]} 75. Kg2 {[%clk 0:00:11]}  Qc3 {[%clk 0:00:05]} 76. Qd5 {[%clk 0:00:11]}  g6 {[%clk 0:00:05]} 77. g4 {[%clk 0:00:10]}  Kg7 {[%clk 0:00:06]} 78. f3 {[%clk 0:00:11]}  Be7 {[%clk 0:00:06]} 79. Kg3 {[%clk 0:00:11]}  Bf6 {[%clk 0:00:06]} 80. c5 {[%clk 0:00:11]}  Qe5+ {[%clk 0:00:06]} 81. Qxe5 {[%clk 0:00:09]}  Bxe5+ {[%clk 0:00:07]} 82. Kg2 {[%clk 0:00:09]}  Bc7 {[%clk 0:00:07]} 83. Kf2 {[%clk 0:00:08]}  Kf6 {[%clk 0:00:08]} 84. Ke3 {[%clk 0:00:08]}  Ke6 {[%clk 0:00:09]} 85. Ke4 {[%clk 0:00:08]}  Bb8 {[%clk 0:00:08]} 86. f4 {[%clk 0:00:08]}  f5+ {[%clk 0:00:08]} 87. gxf5+ {[%clk 0:00:08]}  gxf5+ {[%clk 0:00:09]} 88. Kf3 {[%clk 0:00:08]}  Kd5 {[%clk 0:00:08]} 89. Kg3 {[%clk 0:00:09]}  Kxc5 {[%clk 0:00:06]} 90. Kh4 {[%clk 0:00:09]}  Kd5 {[%clk 0:00:06]} 91. Kg5 {[%clk 0:00:09]}  Ke4 {[%clk 0:00:07]} 92. Kf6 {[%clk 0:00:09]}  Bxf4 {[%clk 0:00:07]} 93. Ke6 {[%clk 0:00:09]}  Be5 {[%clk 0:00:08]} 0-1


[Site "https://www.chess.com"]

[Event "Titled Tuesday Blitz January 03 Early 2023"]
[White "Mazurkiewicz, Michal"]
[Black "Makhmudov, Shukhrat"]
[WhiteFideId "1124943"]
[BlackFideId "14200775"]
[WhiteElo "2145"]
[BlackElo "2115"]
[Result "1-0"]
[Round "07"]
[TimeControl "180+2"]
[Date "2023.01.03"]
[WhiteClock "0:00:14"]
[BlackClock "0:00:04"]

1. e4 {[%clk 0:03:00]}  e5 {[%clk 0:02:54]} 2. Nf3 {[%clk 0:03:00]}  Nc6 {[%clk 0:02:54]} 3. d3 {[%clk 0:03:00]}  Nf6 {[%clk 0:02:54]} 4. g3 {[%clk 0:03:00]}  Bc5 {[%clk 0:02:54]} 5. Bg2 {[%clk 0:03:00]}  d5 {[%clk 0:02:54]} 6. exd5 {[%clk 0:03:00]}  Nxd5 {[%clk 0:02:55]} 7. O-O {[%clk 0:03:01]}  O-O {[%clk 0:02:54]} 8. Nc3 {[%clk 0:02:54]}  Nxc3 {[%clk 0:02:54]} 9. bxc3 {[%clk 0:02:55]}  Bb6 {[%clk 0:02:52]} 10. a4 {[%clk 0:02:52]}  Bg4 {[%clk 0:02:48]} 11. Be3 {[%clk 0:02:39]}  f6 {[%clk 0:02:18]} 12. Qb1 {[%clk 0:02:29]}  Qd7 {[%clk 0:02:07]} 13. Qb5 {[%clk 0:02:22]}  Bxe3 {[%clk 0:01:52]} 14. fxe3 {[%clk 0:02:23]}  Rab8 {[%clk 0:01:47]} 15. Nd2 {[%clk 0:02:20]}  Bh3 {[%clk 0:01:39]} 16. Qd5+ {[%clk 0:02:11]}  Kh8 {[%clk 0:01:39]} 17. Qxd7 {[%clk 0:02:10]}  Bxd7 {[%clk 0:01:38]} 18. a5 {[%clk 0:02:02]}  a6 {[%clk 0:01:28]} 19. Ne4 {[%clk 0:01:59]}  Nd8 {[%clk 0:01:23]} 20. Nc5 {[%clk 0:01:57]}  Bc8 {[%clk 0:01:23]} 21. Rab1 {[%clk 0:01:53]}  b6 {[%clk 0:01:22]} 22. Rb2 {[%clk 0:01:45]}  b5 {[%clk 0:01:18]} 23. c4 {[%clk 0:01:45]}  c6 {[%clk 0:01:18]} 24. cxb5 {[%clk 0:01:40]}  Rxb5 {[%clk 0:01:17]} 25. Rxb5 {[%clk 0:01:36]}  cxb5 {[%clk 0:01:17]} 26. c4 {[%clk 0:01:31]}  bxc4 {[%clk 0:01:16]} 27. dxc4 {[%clk 0:01:31]}  Rf7 {[%clk 0:01:16]} 28. Rd1 {[%clk 0:01:24]}  Rf8 {[%clk 0:01:16]} 29. Rd6 {[%clk 0:01:13]}  h6 {[%clk 0:00:54]} 30. Rb6 {[%clk 0:01:12]}  Nf7 {[%clk 0:00:39]} 31. Bd5 {[%clk 0:01:05]}  Ng5 {[%clk 0:00:36]} 32. h4 {[%clk 0:01:01]}  Nh7 {[%clk 0:00:29]} 33. Nxa6 {[%clk 0:00:53]}  f5 {[%clk 0:00:28]} 34. Nc7 {[%clk 0:00:46]}  f4 {[%clk 0:00:27]} 35. exf4 {[%clk 0:00:46]}  exf4 {[%clk 0:00:27]} 36. gxf4 {[%clk 0:00:47]}  Rxf4 {[%clk 0:00:24]} 37. Rb8 {[%clk 0:00:47]}  Rf8 {[%clk 0:00:24]} 38. Be4 {[%clk 0:00:28]}  Nf6 {[%clk 0:00:16]} 39. a6 {[%clk 0:00:28]}  Nxe4 {[%clk 0:00:10]} 40. a7 {[%clk 0:00:29]}  Ng3 {[%clk 0:00:05]} 41. a8=Q {[%clk 0:00:21]}  Ne2+ {[%clk 0:00:05]} 42. Kh2 {[%clk 0:00:20]}  Rf2+ {[%clk 0:00:04]} 43. Qg2 {[%clk 0:00:21]}  Rxg2+ {[%clk 0:00:04]} 44. Kxg2 {[%clk 0:00:21]}  Nf4+ {[%clk 0:00:04]} 45. Kf3 {[%clk 0:00:21]}  Ng6 {[%clk 0:00:02]} 46. Rxc8+ {[%clk 0:00:21]}  Kh7 {[%clk 0:00:03]} 47. Ne6 {[%clk 0:00:16]}  Ne5+ {[%clk 0:00:03]} 48. Ke4 {[%clk 0:00:16]}  Nf7 {[%clk 0:00:03]} 49. Rc7 {[%clk 0:00:15]}  Kg6 {[%clk 0:00:02]} 50. Nf8+ {[%clk 0:00:14]}  Kf6 {[%clk 0:00:02]} 51. Nd7+ {[%clk 0:00:13]}  Ke6 {[%clk 0:00:03]} 52. Nc5+ {[%clk 0:00:13]}  Kd6 {[%clk 0:00:03]} 53. Rxf7 {[%clk 0:00:13]}  Kxc5 {[%clk 0:00:03]} 54. Rxg7 {[%clk 0:00:13]}  Kxc4 {[%clk 0:00:04]} 55. Rc7+ {[%clk 0:00:14]} 1-0


[Site "https://www.chess.com"]